lending/lending_fUSD_20240417
["ID","MTS","AMOUNT","RATE_DAILY","PERIOD"]
[322838541,1713382241599,-355.0,0.00019661,2]
[322838542,1713382241608,-1140.0,0.00019661,2]
[322838543,1713382241618,-968.0,0.00019661,2]
[322838544,1713382241627,-2037.006,0.00019661,2]
[322838545,1713382241636,-385.952,0.00019661,2]
[322838546,1713382241646,-19076.755,0.00019661,2]
[322838547,1713382241655,-2065.97,0.00019661,2]
[322838548,1713382241665,-1254.0,0.00019661,2]
[322838549,1713382241674,-541.0,0.00019661,2]
[322838550,1713382241683,-1228.0,0.00019661,2]
[322838551,1713382241692,-539.0,0.00019671,2]
[322838552,1713382241702,-150.14,0.00019673,2]
[322838553,1713382241711,-83365.12076134,0.00019683,2]
[322838554,1713382241721,-18170.50907585,0.00019683,2]
[322838555,1713382241730,-157.63,0.00019687,2]
[322838556,1713382241740,-150.0,0.00019687,2]
[322838557,1713382241749,-301.49,0.00019687,2]
[322838558,1713382241758,-165.93,0.00019703,2]
[322838559,1713382241768,-1000.0,0.00019726,2]
[322838560,1713382241777,-200.0,0.0001984,2]
[322838561,1713382241786,-1000.0,0.0001984,2]
[322838562,1713382241796,-500.0,0.0001984,2]
[322838563,1713382241805,-200.0,0.0001984,2]
[322838564,1713382241815,-12176.42693304,0.00019905,2]
[322838565,1713382241824,-233.89,0.00019943,2]
[322838566,1713382241834,-215.73970393,0.0002,2]
[322838567,1713382241845,-186.07241725,0.0002,2]
[322838568,1713382241855,-6219.13910648,0.0002,2]
[322838569,1713382241864,-641.27305155,0.0002,2]
[322838570,1713382241873,-3065.67342855,0.0002,2]
[322838571,1713382241883,-20196.34585858,0.0002,2]
[322838572,1713382241892,-859.35539064,0.0002,2]
[322838573,1713382241902,-155.0,0.0002,2]
[322838574,1713382241911,-1765.57043751,0.0002,2]
[322838575,1713382241920,-168.75956521,0.0002,2]
[322838576,1713382241930,-4493.37894948,0.0002,2]
[322838577,1713382241939,-440.37569055,0.0002,2]
[322838578,1713382241948,-261.51775987,0.0002,2]
[322838579,1713382241957,-155.0,0.0002,2]
[322838580,1713382241967,-155.0,0.0002,2]
[322838581,1713382241976,-1256.5732188,0.0002,2]
[322838582,1713382241987,-155.0,0.0002,2]
[322838583,1713382241996,-3000.01,0.0002,2]
[322838584,1713382242006,-8000.0,0.0002,2]
[322838585,1713382242015,-162.179472,0.0002,2]
[322838586,1713382242025,-150.34000937,0.0002,2]
[322838587,1713382242034,-230.4262186,0.0002,2]
[322838588,1713382242043,-230.4262186,0.0002,2]
[322838589,1713382242053,-230.4262186,0.0002,2]
[322838590,1713382242062,-230.4262186,0.0002,2]
[322838591,1713382242071,-230.4262186,0.0002,2]
[322838592,1713382242081,-230.4262186,0.0002,2]
[322838593,1713382242092,-230.4262186,0.0002,2]
[322838594,1713382242102,-230.4262186,0.0002,2]
[322838595,1713382242112,-230.4262186,0.0002,2]
[322838596,1713382242121,-230.4262186,0.0002,2]
[322838597,1713382242130,-230.4262186,0.0002,2]
[322838598,1713382242140,-230.4262186,0.0002,2]
[322838599,1713382242149,-230.4262186,0.0002,2]
[322838600,1713382242158,-230.4262186,0.0002,2]
[322838601,1713382242168,-230.4262186,0.0002,2]
[322838602,1713382242178,-230.4262186,0.0002,2]
[322838603,1713382242187,-230.4262186,0.0002,2]
[322838604,1713382242196,-230.4262186,0.0002,2]
[322838605,1713382242206,-230.4262186,0.0002,2]
[322838606,1713382242215,-230.4262186,0.0002,2]
[322838607,1713382242225,-230.4262186,0.0002,2]
[322838608,1713382242234,-230.4262186,0.0002,2]
[322838609,1713382242244,-230.4262186,0.0002,2]
[322838610,1713382242253,-230.4262186,0.0002,2]
[322838611,1713382242263,-230.4262186,0.0002,2]
[322838612,1713382242272,-230.4262186,0.0002,2]
[322838613,1713382242281,-230.4262186,0.0002,2]
[322838614,1713382242290,-230.4262186,0.0002,2]
[322838615,1713382242300,-230.4262186,0.0002,2]
[322838616,1713382242309,-230.4262186,0.0002,2]
[322838617,1713382242318,-230.4262186,0.0002,2]
[322838618,1713382242328,-230.4262186,0.0002,2]
[322838619,1713382242337,-230.4262186,0.0002,2]
[322838620,1713382242352,-230.4262186,0.0002,2]
[322838621,1713382242361,-230.4262186,0.0002,2]
[322838622,1713382242370,-230.4262186,0.0002,2]
[322838623,1713382242379,-8000.0,0.0002001,2]
[322838624,1713382242389,-7699.63,0.0002002,2]
[322838625,1713382242398,-6232.04123738,0.00020118,2]
[322838626,1713382242407,-737.6,0.00020193,2]
[322838627,1713382242416,-328.0,0.00020196,2]
[322838628,1713382242425,-2100.0,0.00020218,2]
[322838629,1713382242434,-650.26,0.00020248,6]
[322838630,1713382242444,-17944.48,0.00020248,6]
[322838631,1713382242453,-11061.13,0.00020248,6]
[322838632,1713382242463,-244.96,0.00020248,6]
[322838633,1713382242472,-36749.82,0.00020248,6]
[322838634,1713382242482,-7546.87,0.00020248,6]
[322838635,1713382242491,-16019.15,0.00020248,6]
[322838636,1713382242501,-13484.52,0.00020248,6]
[322838637,1713382242510,-17259.11,0.00020248,6]
[322838638,1713382242520,-212.841894,0.00020274,2]
[322838639,1713382242529,-83365.12076134,0.00020292,2]
[322838640,1713382242539,-18170.50907585,0.00020292,2]
[322838641,1713382242549,-239.29,0.00020389,2]
[322838642,1713382242559,-12176.42693304,0.00020403,2]
[322838643,1713382242569,-539.0,0.00020493,2]
[322838644,1713382242579,-747.10748779,0.000205,7]
[322838645,1713382242593,-150.0,0.000205,2]
[322838646,1713382242602,-172.67,0.00020548,2]
[322838647,1713382242612,-19848.93,0.00020548,2]
[322838648,1713382242623,-851.76,0.00020549,2]
[322838649,1713382242633,-822.8,0.00020712,2]
[322838650,1713382242643,-6933.09121626,0.0002079,2]
[322838651,1713382242653,-150.14,0.0002079,2]
[322838652,1713382242664,-60886.64217195,0.000208,2]
[322838653,1713382242679,-2350.75626598,0.000208,2]
[322838654,1713382242730,-230.4262186,0.0002,2]
[322838655,1713382242739,-62829.57378137,0.000208,2]
[322838658,1713382243774,-1000.3158744,0.00015524,2]
[322838659,1713382244368,-782.53398254,0.00015524,2]
[322838660,1713382244378,-460.69888761,0.0001693,2]
[322838661,1713382244390,-1067.5,0.0001693,2]
[322838662,1713382244431,-1816.48427576,0.0001693,2]
[322838663,1713382244446,-3696.17646218,0.0001693,2]
[322838664,1713382244455,-157.652,0.00019119,2]
[322838665,1713382244465,-157.652,0.00019127,2]
[322838666,1713382244474,-157.652,0.00019135,2]
[322838667,1713382244483,-157.652,0.00019142,2]
[322838668,1713382244492,-157.652,0.0001915,2]
[322838669,1713382244505,-157.652,0.00019158,2]
[322838670,1713382244514,-230.4262186,0.0002,2]
[322838671,1713382244523,-230.4262186,0.0002,2]
[322838672,1713382244532,-230.4262186,0.0002,2]
[322838673,1713382244542,-230.4262186,0.0002,2]
[322838674,1713382244551,-230.4262186,0.0002,2]
[322838675,1713382244560,-230.4262186,0.0002,2]
[322838676,1713382244571,-230.4262186,0.0002,2]
[322838677,1713382244581,-230.4262186,0.0002,2]
[322838678,1713382244590,-230.4262186,0.0002,2]
[322838679,1713382244605,-230.4262186,0.0002,2]
[322838680,1713382244616,-230.4262186,0.0002,2]
[322838681,1713382244626,-230.4262186,0.0002,2]
[322838682,1713382244635,-230.4262186,0.0002,2]
[322838683,1713382244645,-37486.39617343,0.000208,2]
[322838684,1713382244840,-2031.39554614,0.00015676,2]
[322838685,1713382244853,-1030.5412573,0.00017879,5]
[322838686,1713382244862,-157.652,0.00019166,2]
[322838687,1713382244871,-28114.92132982,0.000208,2]
[322838688,1713382244959,-199.5185368,0.00017879,5]
[322838689,1713382244969,-279.37598752,0.000208,2]
[322838690,1713382245120,-39756.90675145,0.000208,2]
[322838691,1713382245129,-1000.0,0.00020831,2]
[322838692,1713382245138,-500.0,0.00020831,2]
[322838693,1713382245147,-150.14,0.00020836,2]
[322838694,1713382245157,-1527.12004855,0.00020837,2]
[322838695,1713382245934,-594.6488,0.00020837,2]
[322838697,1713382245977,-321.25185812,0.00020837,2]
[322838701,1713382246935,-539.0,0.00018083,2]
[322838702,1713382246944,-539.0,0.00018905,2]
[322838703,1713382246954,-936.35,0.00018915,2]
[322838704,1713382246965,-4961.44007195,0.00018915,2]
[322838705,1713382247017,-1143.06955358,0.00018915,2]
[322838706,1713382247026,-336.46294642,0.00019726,2]
[322838707,1713382260041,3221.68712299,0.00014974,2]
[322838708,1713382750510,638.5,0.00014302,2]
[322838709,1713383225889,624.05,0.00014977,2]
[322838711,1713383432531,-155.0,0.00016133,2]
[322838712,1713383432541,-689.00971584,0.00016133,2]
[322838713,1713383432553,-858.85640371,0.00016133,2]
[322838714,1713383432590,-858.16390953,0.00016133,2]
[322838715,1713383432602,-291.87564507,0.00016133,2]
[322838716,1713383432614,-292.24,0.00016133,2]
[322838717,1713383432676,-15367.23905135,0.00016133,2]
[322838718,1713383432690,-1067.69272448,0.00016133,2]
[322838719,1713383432701,-2290.0,0.00016134,2]
[322838720,1713383432712,-4228.75260193,0.00016135,2]
[322838721,1713383432723,-150.0,0.00016136,2]
[322838722,1713383432734,-219.26,0.0001616,2]
[322838723,1713383432743,-3100.48,0.00016397,2]
[322838724,1713383432753,-4733.06,0.00016483,2]
[322838725,1713383432765,-852.48,0.00016589,2]
[322838726,1713383432780,-434.4046,0.000167,2]
[322838727,1713383432790,-7063.03,0.00016712,2]
[322838728,1713383432800,-184.4,0.00016719,2]
[322838729,1713383432810,-16539.01,0.00016751,2]
[322838730,1713383432819,-200.0,0.00016778,2]
[322838731,1713383432829,-2002.435292,0.00016785,2]
[322838732,1713383432838,-499.99,0.00016785,2]
[322838733,1713383432848,-816.0802,0.000168,2]
[322838734,1713383432857,-500.0,0.000168,2]
[322838735,1713383432866,-16129.9245816,0.000168,2]
[322838750,1713383438623,-1083.50213176,0.000168,2]
[322838753,1713383438661,-6128.0,0.000168,2]
[322838756,1713383438676,-520.76,0.000168,2]
[322838758,1713383438687,-421.399227,0.000168,2]
[322838761,1713383438713,-494.72760592,0.000168,2]
[322838869,1713383440396,-976.68977929,0.000168,2]
[322838870,1713383440408,-1527.7945,0.000168,2]
[322838871,1713383441806,-339.00018585,0.000168,2]
[322838872,1713383441818,-563.96311532,0.000168,2]
[322838873,1713383441830,-8026.99977326,0.000168,2]
[322838874,1713383441839,-1000.0,0.000168,2]
[322838875,1713383441849,-16420.3913,0.000168,2]
[322838876,1713383441860,-49129.9276,0.000168,2]
[322838877,1713383441870,-263.736,0.000168,2]
[322838878,1713383441880,-250.0,0.00016815,2]
[322838879,1713383441893,-1558.01030938,0.00016845,2]
[322838880,1713383441902,-614.77,0.0001685,2]
[322838881,1713383441911,-245000.0,0.000169,2]
[322838882,1713383441920,-23900.0,0.00016945,2]
[322838883,1713383441930,-284.26,0.00017042,2]
[322838884,1713383441941,-624.05,0.00017241,2]
[322838885,1713383441952,-264.01498696,0.00017246,2]
[322838886,1713383441962,-408.60422186,0.00017246,2]
[322838887,1713383441973,-1454.87435025,0.00017424,2]
[322838888,1713383441985,-103.13595909,0.00017424,2]
[322838889,1713383441994,-5610.2734595,0.0001788,2]
[322838890,1713383442003,-5610.27345943,0.0001788,2]
[322838891,1713383442013,-5610.27345943,0.0001788,2]
[322838892,1713383442022,-25009.53622842,0.0001788,2]
[322838893,1713383442036,-25009.5362284,0.0001788,2]
[322838894,1713383442045,-25009.5362284,0.0001788,2]
[322838895,1713383442054,-1558.01030934,0.00018004,2]
[322838896,1713383442063,-210.40439846,0.00018082,2]
[322838897,1713383442072,-573.0,0.00018083,2]
[322838898,1713383442081,-5610.27345943,0.00018197,2]
[322838899,1713383442091,-25009.5362284,0.00018197,2]
[322838900,1713383442100,-200.0,0.00018307,2]
[322838901,1713383442110,-165.93,0.00018457,2]
[322838902,1713383442120,-1558.01030934,0.00018583,2]
[322838903,1713383442130,-1587.12298409,0.000186,2]
[322838904,1713383442140,-5610.27345943,0.00018647,2]
[322838905,1713383442150,-25009.5362284,0.00018647,2]
[322838906,1713383442160,-852.48,0.00018663,2]
[322838907,1713383442170,-671.0,0.000187,2]
[322838908,1713383442180,-1587.12298407,0.00018764,2]
[322838909,1713383442190,-573.0,0.00018905,2]
[322838910,1713383442200,-1587.12298407,0.00018929,2]
[322838911,1713383442210,-4913.57005315,0.00019,2]
[322838912,1713383442221,-1550.0,0.00019,3]
[322838913,1713383442232,-1587.12298407,0.00019093,2]
[322838914,1713383442242,-5610.27345943,0.00019098,2]
[322838915,1713383442253,-25009.5362284,0.00019098,2]
[322838916,1713383442264,-1558.01030934,0.00019162,2]
[322838917,1713383442277,-204.59,0.00019165,2]
[322838918,1713383442287,-3869.82317102,0.00019256,2]
[322838919,1713383442296,-1587.12298407,0.00019257,2]
[322838920,1713383442305,-1587.12298407,0.00019421,2]
[322838921,1713383442314,-624.05,0.00019505,2]
[322838922,1713383442324,-184.4,0.00019506,2]
[322838923,1713383442333,-5610.27345943,0.00019548,2]
[322838924,1713383442343,-5413.90886606,0.00019548,2]
[322838925,1713383442387,-19595.62736234,0.00019548,2]
[322838926,1713383442396,-1587.12298407,0.00019586,2]
[322838927,1713383442406,-968.0,0.00019704,2]
[322838928,1713383442416,-2037.006,0.00019704,2]
[322838929,1713383442426,-385.952,0.00019704,2]
[322838930,1713383442436,-1228.0,0.00019704,2]
[322838931,1713383442446,-541.0,0.00019704,2]
[322838932,1713383442455,-1254.0,0.00019704,2]
[322838933,1713383442465,-807.0,0.00019704,2]
[322838934,1713383442475,-1949.0,0.00019704,2]
[322838935,1713383442484,-245.34584708,0.00019704,2]
[322838936,1713383442498,-190.65415292,0.00019704,2]
[322838937,1713383442508,-609.0,0.00019704,2]
[322838938,1713383442517,-280.0,0.00019704,2]
[322838939,1713383442527,-211.39,0.00019704,2]
[322838940,1713383442536,-399.0,0.00019704,2]
[322838941,1713383442545,-3079.0,0.00019704,2]
[322838942,1713383442554,-1473.0,0.00019704,2]
[322838943,1713383442564,-2442.0,0.00019704,2]
[322838944,1713383442574,-1639.0,0.00019704,2]
[322838945,1713383442583,-152.166,0.00019704,2]
[322838946,1713383442593,-214.0,0.00019704,2]
[322838947,1713383442603,-1140.0,0.00019704,2]
[322838948,1713383442612,-355.0,0.00019704,2]
[322838949,1713383442622,-443.0,0.00019704,2]
[322838950,1713383442632,-2065.97,0.00019704,2]
[322838951,1713383442642,-19076.755,0.00019704,2]
[322838952,1713383442651,-233.89,0.00019704,2]
[322838953,1713383442661,-573.0,0.00019726,2]
[322838954,1713383442670,-1000.0,0.00019726,2]
[322838955,1713383442680,-1558.01030934,0.00019741,2]
[322838956,1713383442690,-1587.12298407,0.0001975,2]
[322838957,1713383442703,-200.0,0.00019759,2]
[322838958,1713383442713,-1000.0,0.00019759,2]
[322838959,1713383442722,-500.0,0.00019759,2]
[322838960,1713383442732,-200.0,0.00019759,2]
[322838961,1713383442742,-284.26,0.00019781,2]
[322838962,1713383442751,-1587.12298407,0.00019914,2]
[322838963,1713383442761,-3155.94564245,0.00019921,2]
[322838964,1713383442774,-278.896721,0.00019921,2]
[322838965,1713383442786,-150.14,0.00019989,2]
[322838966,1713383442797,-5610.27345943,0.00019999,2]
[322838967,1713383442807,-1507.17480896,0.00019999,2]
[322838968,1713383442856,-23502.36141944,0.00019999,2]
[322838969,1713383442867,-982.77141677,0.0002,2]
[322838970,1713383442877,-7699.62,0.0002,2]
[322838971,1713383442886,-7999.99,0.0002,2]
[322838972,1713383442895,-8000.0,0.0002,2]
[322838973,1713383442904,-150.34000937,0.0002,2]
[322838974,1713383442914,-186.07241725,0.0002,2]
[322838975,1713383442924,-155.0,0.0002,2]
[322838976,1713383442934,-3065.67342855,0.0002,2]
[322838977,1713383442945,-6219.13910648,0.0002,2]
[322838978,1713383442955,-165.9068774,0.0002,2]
[322838979,1713383442965,-165.9068774,0.0002,2]
[322838980,1713383442976,-165.9068774,0.0002,2]
[322838981,1713383442985,-165.9068774,0.0002,2]
[322838982,1713383442995,-165.9068774,0.0002,2]
[322838983,1713383443005,-165.9068774,0.0002,2]
[322838984,1713383443015,-165.9068774,0.0002,2]
[322838985,1713383443024,-165.9068774,0.0002,2]
[322838986,1713383443036,-165.9068774,0.0002,2]
[322838987,1713383443046,-165.9068774,0.0002,2]
[322838988,1713383443056,-165.9068774,0.0002,2]
[322838989,1713383443065,-165.9068774,0.0002,2]
[322838990,1713383443074,-165.9068774,0.0002,2]
[322838991,1713383443084,-165.9068774,0.0002,2]
[322838992,1713383443093,-6308.98010887,0.0002,2]
[322838993,1713383443105,-13887.36574971,0.0002,2]
[322838994,1713383443114,-165.9068774,0.0002,2]
[322838995,1713383443124,-165.9068774,0.0002,2]
[322838996,1713383443133,-165.9068774,0.0002,2]
[322838997,1713383443142,-165.9068774,0.0002,2]
[322838999,1713383443151,-165.9068774,0.0002,2]
[322839001,1713383443161,-165.9068774,0.0002,2]
[322839003,1713383443170,-165.9068774,0.0002,2]
[322839005,1713383443180,-165.9068774,0.0002,2]
[322839007,1713383443190,-165.9068774,0.0002,2]
[322839009,1713383443199,-165.9068774,0.0002,2]
[322839012,1713383443209,-165.9068774,0.0002,2]
[322839015,1713383443219,-165.9068774,0.0002,2]
[322839018,1713383443228,-165.9068774,0.0002,2]
[322839020,1713383443238,-165.9068774,0.0002,2]
[322839022,1713383443247,-165.9068774,0.0002,2]
[322839024,1713383443256,-165.9068774,0.0002,2]
[322839026,1713383443265,-165.9068774,0.0002,2]
[322839028,1713383443274,-165.9068774,0.0002,2]
[322839030,1713383443285,-165.9068774,0.0002,2]
[322839032,1713383443294,-165.9068774,0.0002,2]
[322839034,1713383443303,-165.9068774,0.0002,2]
[322839036,1713383443312,-165.9068774,0.0002,2]
[322839038,1713383443322,-165.9068774,0.0002,2]
[322839039,1713383443331,-165.9068774,0.0002,2]
[322839042,1713383443341,-165.9068774,0.0002,2]
[322839043,1713383443350,-165.9068774,0.0002,2]
[322839045,1713383443360,-165.9068774,0.0002,2]
[322839047,1713383443369,-165.9068774,0.0002,2]
[322839049,1713383443379,-165.9068774,0.0002,2]
[322839051,1713383443389,-165.9068774,0.0002,2]
[322839053,1713383443398,-165.9068774,0.0002,2]
[322839055,1713383443407,-165.9068774,0.0002,2]
[322839057,1713383443417,-165.9068774,0.0002,2]
[322839058,1713383443427,-165.9068774,0.0002,2]
[322839059,1713383443436,-165.9068774,0.0002,2]
[322839060,1713383443446,-165.9068774,0.0002,2]
[322839061,1713383443456,-1765.57043751,0.00020008,2]
[322839062,1713383443466,-472.44036874,0.00020008,2]
[322839064,1713383443495,-386.9150219,0.00020008,2]
[322839066,1713383443504,-641.27305155,0.00020009,2]
[322839067,1713383443514,-3000.03,0.0002001,2]
[322839068,1713383443523,-1587.12298407,0.00020079,2]
[322839069,1713383443533,-3434.84236345,0.00020087,2]
[322839070,1713383443543,-11061.13,0.00020133,6]
[322839071,1713383443553,-244.96,0.00020133,6]
[322839072,1713383443562,-1437.470984,0.00020174,2]
[322839073,1713383443571,-1587.12298407,0.00020243,2]
[322839074,1713383443580,-10785.10129031,0.00020267,6]
[322839075,1713383443609,-391.86277295,0.00020267,6]
[322839076,1713383444206,-1966.65077062,0.00020267,6]
[322839077,1713383444294,-2041.49923668,0.00020267,6]
[322839078,1713383446347,-2759.36592944,0.00020267,6]
[322839079,1713383446356,-1437.470984,0.0002028,2]
[322839080,1713383446366,-1558.01030934,0.00020321,2]
[322839081,1713383446375,-705.0,0.00020385,2]
[322839082,1713383446387,-2100.0,0.00020385,2]
[322839083,1713383446396,-16019.15,0.00020399,6]
[322839084,1713383446406,-13484.52,0.00020399,6]
[322839085,1713383446415,-17259.11,0.00020399,6]
[322839086,1713383446425,-1587.12298407,0.00020407,2]
[322839087,1713383446435,-5610.27345943,0.00020449,2]
[322839088,1713383446444,-25009.5362284,0.00020449,2]
[322839089,1713383446455,-3434.84236345,0.00020462,2]
[322839090,1713383446464,-650.26,0.0002049,6]
[322839091,1713383446474,-150.0,0.000205,2]
[322839092,1713383446483,-36749.82,0.0002051,6]
[322839093,1713383446492,-7546.87,0.0002051,6]
[322839094,1713383446502,-150.0,0.00020546,2]
[322839095,1713383446511,-172.67,0.00020548,2]
[322839096,1713383446521,-19848.93,0.00020548,2]
[322839097,1713383446534,-573.0,0.00020548,2]
[322839098,1713383446544,-150.0,0.00020548,2]
[322839099,1713383446553,-150.0,0.00020552,2]
[322839100,1713383446562,-150.0,0.00020553,2]
[322839101,1713383446571,-150.0,0.00020553,2]
[322839102,1713383446582,-150.0,0.00020564,2]
[322839103,1713383446592,-1500.0,0.00020564,2]
[322839104,1713383446602,-150.0,0.00020565,2]
[322839105,1713383446611,-1500.0,0.00020565,2]
[322839106,1713383446621,-150.0,0.00020568,2]
[322839107,1713383446630,-1500.0,0.0002057,2]
[322839108,1713383446641,-1587.12298407,0.00020571,2]
[322839109,1713383446650,-1500.0,0.00020573,2]
[322839110,1713383446659,-1500.0,0.00020573,2]
[322839111,1713383446669,-1500.0,0.00020574,2]
[322839112,1713383446678,-300.0,0.00020575,2]
[322839113,1713383446689,-684.33,0.00020575,2]
[322839114,1713383446699,-300.0,0.00020579,2]
[322839115,1713383446708,-150.0,0.00020582,2]
[322839116,1713383446717,-1500.0,0.00020584,2]
[322839117,1713383446727,-150.0,0.00020584,2]
[322839118,1713383446737,-1500.0,0.00020593,2]
[322839119,1713383446745,-150.0,0.00020594,2]
[322839120,1713383446754,-1500.0,0.00020601,2]
[322839121,1713383446764,-150.0,0.00020604,2]
[322839122,1713383446773,-150.0,0.00020607,2]
[322839123,1713383446787,-150.0,0.00020613,2]
[322839124,1713383446795,-1500.0,0.00020617,2]
[322839125,1713383446804,-1500.0,0.00020618,2]
[322839126,1713383446813,-150.0,0.00020625,2]
[322839127,1713383446822,-150.0,0.00020627,2]
[322839128,1713383446831,-150.0,0.00020627,2]
[322839129,1713383446840,-150.0,0.00020627,2]
[322839130,1713383446849,-300.0,0.00020629,2]
[322839131,1713383446859,-150.0,0.00020629,2]
[322839132,1713383446868,-1500.0,0.00020629,2]
[322839133,1713383446878,-1500.0,0.0002063,2]
[322839134,1713383446888,-1500.0,0.0002063,2]
[322839135,1713383446898,-1500.0,0.00020631,2]
[322839136,1713383446907,-1500.0,0.00020631,2]
[322839138,1713383446916,-150.0,0.00020636,2]
[322839141,1713383446926,-1500.0,0.00020643,2]
[322839142,1713383446936,-150.0,0.00020647,2]
[322839145,1713383446947,-1500.0,0.00020651,2]
[322839147,1713383446956,-1437.470984,0.00020653,2]
[322839148,1713383446965,-150.0,0.00020667,2]
[322839150,1713383446975,-1500.0,0.00020668,2]
[322839153,1713383446984,-1500.0,0.00020668,2]
[322839155,1713383446993,-150.0,0.00020669,2]
[322839157,1713383447002,-1228.60131447,0.00020669,2]
[322839171,1713383447132,-271.39868553,0.00020669,2]
[322839173,1713383447142,-1000.0,0.00020669,2]
[322839175,1713383447151,-500.0,0.00020669,2]
[322839177,1713383447160,-3434.84236345,0.00020672,2]
[322839179,1713383447169,-150.0,0.00020679,2]
[322839181,1713383447178,-236.39818937,0.00020685,2]
[322839184,1713383447193,-1248.56865024,0.00020685,2]
[322839186,1713383447204,-15.03316039,0.00020685,2]
[322839188,1713383447213,-150.0,0.00020686,2]
[322839190,1713383447221,-1500.0,0.00020688,2]
[322839192,1713383447231,-150.0,0.00020691,2]
[322839194,1713383447240,-150.0,0.00020699,2]
[322839196,1713383447250,-90.26683961,0.00020704,2]
[322839199,1713383447261,-1409.73316039,0.00020704,2]
[322839201,1713383447269,-260.10000551,0.00020707,2]
[322839203,1713383447282,-1500.0,0.00020707,2]
[322839205,1713383447292,-1500.0,0.00020709,2]
[322839206,1713383447301,-150.0,0.00020713,2]
[322839208,1713383447310,-150.0,0.00020715,2]
[322839211,1713383447319,-150.0,0.00020716,2]
[322839213,1713383447328,-1500.0,0.00020717,2]
[322839215,1713383447337,-150.0,0.00020718,2]
[322839216,1713383447347,-150.0,0.00020721,2]
[322839218,1713383447356,-1500.0,0.00020721,2]
[322839220,1713383447365,-1500.0,0.00020723,2]
[322839223,1713383447375,-150.0,0.00020726,2]
[322839225,1713383447384,-150.0,0.00020727,2]
[322839227,1713383447393,-170.63737638,0.00020729,2]
[322839228,1713383447402,-1500.0,0.00020729,2]
[322839230,1713383447411,-150.0,0.00020731,2]
[322839232,1713383447421,-153.10486378,0.00020731,2]
[322839235,1713383447430,-170.37774006,0.00020731,2]
[322839237,1713383447439,-1500.0,0.00020735,2]
[322839238,1713383447448,-1587.12298407,0.00020736,2]
[322839239,1713383447457,-852.48,0.00020737,2]
[322839240,1713383447466,-153.10486378,0.00020737,2]
[322839241,1713383447475,-1500.0,0.0002074,2]
[322839242,1713383447484,-153.10486378,0.00020742,2]
[322839243,1713383447493,-150.0,0.00020743,2]
[322839244,1713383447502,-1500.0,0.00020743,2]
[322839245,1713383447511,-1500.0,0.00020745,2]
[322839246,1713383447520,-153.10486378,0.00020748,2]
[322839247,1713383447533,-1500.0,0.00020748,2]
[322839248,1713383447542,-3044.10673326,0.00020749,2]
[322839249,1713383447551,-153.10486378,0.00020754,2]
[322839250,1713383447560,-150.0,0.00020757,2]
[322839251,1713383447569,-153.10486378,0.00020759,2]
[322839252,1713383447578,-1500.0,0.00020761,2]
[322839253,1713383447588,-3044.10673326,0.00020763,2]
[322839254,1713383447597,-153.10486378,0.00020765,2]
[322839255,1713383447606,-150.0,0.00020765,2]
[322839256,1713383447615,-150.0,0.00020765,2]
[322839257,1713383447624,-1500.0,0.00020767,2]
[322839258,1713383447634,-150.0,0.00020769,2]
[322839259,1713383447643,-153.10486378,0.0002077,2]
[322839260,1713383447653,-300.0,0.00020773,2]
[322839261,1713383447662,-153.10486378,0.00020776,2]
[322839262,1713383447671,-2001.54777713,0.00020776,2]
[322839263,1713383447686,-1042.55895613,0.00020776,2]
[322839264,1713383447695,-150.0,0.0002078,2]
[322839265,1713383447707,-153.10486378,0.00020782,2]
[322839266,1713383447717,-150.0,0.00020785,2]